Cogmind - Beta 9.1 @@@ ROGUE MODE // 2019.11.11 @ 00:08:27 // Halloween2019/Abominations Player: K.Ioz Result: Destroyed by Lesser Abomination with Plasma Cannon Performance ------------- Evolutions (4) 2000 Regions Visited (5) 1000 Robots Destroyed (21) 105 Value Destroyed (719) 719 Prototype IDs (6) 120 Alien Tech Used (0) 0 Bonus (0) 0 TOTAL SCORE: 3944 Bonus ------- None Cogmind --------- Core Integrity 0/850 Matter 300/300 Energy 81/100 System Corruption 2% Temperature Cool (12) Location -6/Factory Parts ------- Power (1) Propulsion (5) Utility (6) Improved Signal Interpreter Weapon (3) Inventory (4) High-capacity Storage Unit Advanced ECM Suite Peak State ------------ Power (None) Propulsion Aluminum Leg Improved Aluminum Leg Improved Titanium Leg Armored Leg Utility Fusion Compressor Improved Sensor Array Improved Signal Interpreter Recoil Stabilizer Propulsion Shielding Improved Light Armor Plating Weapon Precision Shock Rifle Cooled Pulse Rifle Gauss Rifle Inventory High-capacity Storage Unit Gravity Neutralizing Apparatus Advanced ECM Suite [Rating: 43] Favorites ----------- Power Ion Engine Engine Ion Engine Propulsion Aluminum Leg Leg Aluminum Leg Flight Unit Flight Unit Utility Improved Light Armor Plating Device Sensor Array Storage High-capacity Storage Unit Processor Improved Signal Interpreter Protection Improved Light Armor Plating Weapon Assault Rifle Energy Gun Small Laser Energy Cannon Heavy Ion Cannon Ballistic Gun Assault Rifle Launcher Advanced EMP Blaster Impact Weapon Mace Build | -11 -10 -9 -8 -7 -6 ------- Run | Scr Mat Mat Mat Fac Fac Slots Evolved 8 | . . 2 2 2 2 Power . | . . . . . . Propulsion 3 | . . . . 1 2 Utility 4 | . . 2 2 . . Weapon 1 | . . . . 1 . Parts Attached 53 | 6 10 8 10 11 8 Power 2 | 1 . 1 . . . Engine 2 | 1 . 1 . . . Core . | . . . . . . Reactor . | . . . . . . Propulsion 9 | 2 . . 4 2 1 Treads . | . . . . . . Leg 8 | 2 . . 3 2 1 Wheel . | . . . . . . Hover . | . . . . . . Flight 1 | . . . 1 . . Utility 21 | 1 4 4 1 6 5 Device 10 | . 2 2 . 1 5 Storage 3 | 1 2 . . . . Processor 4 | . . 2 . 2 . Hackware . | . . . . . . Protection 4 | . . . 1 3 . Artifact . | . . . . . . Weapon 21 | 2 6 3 5 3 2 Energy Gun 6 | 1 2 1 . . 2 Energy Cannon 2 | . . . 1 1 . Ballistic Gun 8 | 1 2 1 3 1 . Ballistic Cannon . | . . . . . . Launcher 4 | . 2 1 . 1 . Special Weapon . | . . . . . . Impact Weapon 1 | . . . 1 . . Slashing Weapon . | . . . . . . Piercing Weapon . | . . . . . . Special Melee Weapon . | . . . . . . Unidentified Prototypes 6 | . . . 2 1 3 Parts Lost 30 | . . 11 4 1 14 Power 2 | . . 2 . . . Propulsion 8 | . . 2 2 . 4 Utility 9 | . . 2 1 . 6 Weapon 11 | . . 5 1 1 4 Highest Loss Streak 9 | . . 9 2 1 7 Average Slot Usage (%) 75 | . 96 97 20 68 73 Engine 5 | . 14 10 . . . Leg 21 | . 28 21 9 21 21 Device 10 | . 11 21 . 3 13 Storage 5 | . 14 11 . . . Processor 6 | . . 10 . 12 8 Protection 5 | . . . 1 12 11 Energy Gun 6 | . 13 10 . . 6 Energy Cannon 1 | . . . . 4 3 Ballistic Gun 8 | . 13 10 7 6 5 Launcher 1 | . . . . 5 . Naked Turns 33 | . . 4 29 . . Heaviest Build 43 | 12 43 42 14 29 26 Greatest Support 48 | 20 20 20 28 48 46 Greatest Overweight (x) 11 | 2 2 11 1 1 1 Average Overweight (x) . | . . 1 . . . Largest Inventory Capacity 12 | 6 12 12 4 4 4 Average Capacity 6 | 5 9 11 4 4 4 Most Carried 12 | 4 11 12 4 4 4 Average Carried 5 | 1 8 8 3 2 3 Final Capacity 12 | 6 12 4 4 4 4 Final Carried 11 | 2 11 4 3 2 2 Class Distribution -------------------- 61% | Mutant 21% | Skirmisher 12% | Scavenger-Mutant Dominant Class ---------------- Mutant | -10/Materials Skirmisher | -9/Materials Mutant | -8/Materials Mutant | -7/Factory Mutant | -6/Factory Resources | -11 -10 -9 -8 -7 -6 ----------- Run | Scr Mat Mat Mat Fac Fac Matter Collected 1245 | 260 138 179 186 137 345 Remotely . | . . . . . . Salvage Created 615 | . 127 226 213 49 . Parts 58 | . 19 22 15 2 . Haulers Intercepted . | . . . . . . Recyclers Shooed 1 | . 1 . . . . Parts Field Recycled . | . . . . . . Retrieved Matter . | . . . . . . Parts Self-Destructed . | . . . . . . Prevented . | . . . . . . Kills | -11 -10 -9 -8 -7 -6 ------- Run | Scr Mat Mat Mat Fac Fac Combat Hostiles Destroyed 15 | . 4 5 6 . . Melee 1 | . . . 1 . . Guns 8 | . 1 5 2 . . AOE 3 | . 3 . . . . Classes Destroyed 6 | . 5 1 . . . Worker 2 | . 1 . . 1 . Builder 1 | . . 1 . . . Watcher 3 | . 2 . . 1 . Swarmer 4 | . 2 . 2 . . Grunt 4 | . 1 1 2 . . Abomination 7 | . 1 4 2 . . Best Kill Streak 4 | . 4 4 4 1 . Combat Bots Only 4 | . 3 3 4 . . Max Kills in Single Turn 3 | . 3 1 1 1 . Gunslinging . | . . . . . . Exploded 2 | . 2 . . . . Melee 1 | . . . 1 . . Uniques/NPCs Destroyed . | . . . . . . Combat | -11 -10 -9 -8 -7 -6 -------- Run | Scr Mat Mat Mat Fac Fac Damage Taken 7853 | . 90 1493 1652 770 3848 Core 1905 | . 18 396 526 99 866 Absorbed by Shields . | . . . . . . Core Remaining (%) 56 | 100 92 1 4 85 . Volleys Fired 64 | . 12 34 13 4 1 Largest 3 | . 2 2 2 3 2 Hottest 129 | . 60 60 53 129 83 Shots Fired 123 | . 22 65 26 8 2 Gun 115 | . 20 63 26 4 2 Cannon 2 | . . . . 2 . Launcher 6 | . 2 2 . 2 . Special . | . . . . . . Kinetic 78 | . 13 34 26 4 1 Thermal 38 | . 7 29 . 2 . Explosive 4 | . 2 2 . . . Electromagnetic 3 | . . . . 2 1 Robot Hit Streak 19 | . 3 14 15 19 2 Robot Miss Streak 4 | . 4 4 1 1 1 Penetration Max . | . . . . . . Secondary Targets . | . . . . . . Shots Hit Robots 104 | . 10 47 41 5 1 Core Hits 41 | . 8 20 7 2 4 Critical Hits 1 | . . 1 . . . Critical Kills . | . . . . . . Critical Parts Destroyed 1 | . . 1 . . . Melee Attacks 19 | . . . 19 . . Impact 19 | . . . 19 . . Slashing . | . . . . . . Piercing . | . . . . . . Sneak Attacks 2 | . . . 2 . . Combat Hostiles . | . . . . . . Follow-up Attacks . | . . . . . . Damage Inflicted 2178 | . 300 751 938 114 75 Guns 1267 | . 109 610 482 42 24 Cannons . | . . . . . . Explosions 394 | . 191 141 . 62 . Melee 450 | . . . 450 . . Ramming 67 | . . . 6 10 51 Kinetic 897 | . 63 290 482 42 20 Thermal 366 | . 46 320 . . . Explosive 332 | . 191 141 . . . Electromagnetic 66 | . . . . 62 4 Impact 450 | . . . 450 . . Slashing . | . . . . . . Piercing . | . . . . . . Highest Corruption 7 | . . 2 1 7 2 Average Corruption 2 | . . 1 1 6 1 Corruption Purged . | . . . . . . Effects 17 | . . 4 1 8 4 Message Errors 6 | . . 1 1 2 2 Matter Fused 3 | . . . . 3 . Heat Flow Errors 2 | . . . . 1 1 Energy Discharges 4 | . . 1 . 2 1 Targeting Errors 2 | . . 2 . . . Overload Shots . | . . . . . . Overflow Damage 49 | . 6 16 27 . . Projectiles . | . . . . . . Explosions 22 | . 6 16 . . . Melee 27 | . . . 27 . . Knockbacks 5 | . . . 3 . 2 Impact 5 | . . . 3 . 2 Kinetic . | . . . . . . Secondary . | . . . . . . Self-Inflicted Damage 58 | . . 43 . 1 14 Shots 2 | . . 2 . . . Rammed 16 | . . . 4 3 9 Targets Rammed 25 | . . . 5 6 14 Kicked 9 | . . . 1 3 5 Crushed . | . . . . . . Highest Temperature 784 | . . 3 10 784 705 Average Temperature 152 | . . 3 6 149 177 Received Heat Transfer 1974 | . . 24 576 36 1338 Effects 13 | . . . . 6 7 Energy Bleed 1 | . . . . . 1 Short Circuit 1 | . . . . . 1 Damage (minor) 1 | . . . . . 1 Damage (major) 10 | . . . . 6 4 Siege Activations . | . . . . . . Robots Corrupted . | . . . . . . Combat Hostiles . | . . . . . . Parts Fried 3 | . . . 3 . . Impact Corruptions 5 | . . . 5 . . Robots Melted . | . . . . . . Combat Hostiles . | . . . . . . Parts Melted . | . . . . . . Heat Transferred 307 | . 100 207 . . . Parts Sabotaged . | . . . . . . Parts Stolen . | . . . . . . Parts Stripped . | . . . . . . Power Chain Reactions . | . . . . . . Missiles Intercepted . | . . . . . . Alert | -11 -10 -9 -8 -7 -6 ------- Run | Scr Mat Mat Mat Fac Fac Peak Influence 125 | . 48 30 125 14 27 Average Influence 21 | . 23 7 91 6 10 Maximum Alert Level . | . . . . . . Low Security (%) 100 | . . . . . . Level 1 . | . . . . . . Level 2 . | . . . . . . Level 3 . | . . . . . . Level 4 . | . . . . . . Level 5 . | . . . . . . High Security . | . . . . . . Max Security . | . . . . . . Squads Dispatched 75 | . 3 9 7 37 19 Investigation 16 | . 1 3 2 4 6 Extermination . | . . . . . . Reinforcement 13 | . 2 1 2 5 3 Assault 23 | . . 5 3 11 4 Garrison 23 | . . . . 17 6 Intercept . | . . . . . . Construction Impeded . | . . . . . . Haulers Reinforced 3 | . . . . 2 1 Stealth | -11 -10 -9 -8 -7 -6 --------- Run | Scr Mat Mat Mat Fac Fac Distress Signals 37 | . . 7 7 14 9 Communications Jammed . | . . . . . . Distress Signals . | . . . . . . Times Spotted 81 | . 9 10 27 16 19 Peak Tracking Total 9 | . 3 5 9 6 7 Tactical Retreats 19 | . . . 7 4 8 Traps | -11 -10 -9 -8 -7 -6 ------- Run | Scr Mat Mat Mat Fac Fac Traps Triggered 2 | . . . 2 . . Indirectly . | . . . . . . Trap Hack Attempts . | . . . . . . Triggered . | . . . . . . Disarmed . | . . . . . . Reprogrammed . | . . . . . . Reused . | . . . . . . Traps Extracted . | . . . . . . Installed . | . . . . . . Triggered . | . . . . . . Machines | -11 -10 -9 -8 -7 -6 ---------- Run | Scr Mat Mat Mat Fac Fac Machines Disabled . | . . . . . . Max in Single Turn . | . . . . . . Garrison Access 2 | . . . . 2 . Machines Sabotaged . | . . . . . . Garrisons Compromised . | . . . . . . Overloaded Fab Kills . | . . . . . . Fab Network Shutdowns . | . . . . . . Hacking | -11 -10 -9 -8 -7 -6 --------- Run | Scr Mat Mat Mat Fac Fac Machines Accessed 12 | . 2 2 . 3 5 Terminals 10 | . . 2 . 3 5 Fabricators . | . . . . . . Repair Stations 1 | . 1 . . . . Recycling Units 1 | . 1 . . . . Scanalyzers . | . . . . . . Garrison Access . | . . . . . . Total Hacks 32 | . 4 4 . 6 18 Successful 19 | . 4 2 . 4 9 Failed 13 | . . 2 . 2 9 Catastrophic 3 | . . . . . 3 Database Lockouts . | . . . . . . Manual 6 | . . . . . 6 Terminals 28 | . . 4 . 6 18 Fabricators . | . . . . . . Repair Stations 2 | . 2 . . . . Recycling Units 2 | . 2 . . . . Scanalyzers . | . . . . . . Garrison Access . | . . . . . . Terminal Hacks 15 | . . 2 . 4 9 Record 5 | . . . . 1 4 Part Schematic 1 | . . . . . 1 Branch Access Points 2 | . . . . 1 1 Alert Level 2 | . . 1 . 1 . Locate Traps 1 | . . . . . 1 Dispatch Records 1 | . . 1 . . . Maintenance Status 1 | . . . . 1 . Extermination Status 1 | . . . . . 1 Recall Extermination 1 | . . . . . 1 Fabricator Hacks . | . . . . . . Repair Station Hacks 2 | . 2 . . . . Scan Component 1 | . 1 . . . . Repair 1 | . 1 . . . . Recycling Unit Hacks 2 | . 2 . . . . Process 1 | . 1 . . . . Report Inventory 1 | . 1 . . . . Scanalyzer . | . . . . . . Garrison Access Hacks . | . . . . . . Unauthorized Hacks . | . . . . . . Terminals . | . . . . . . Fabricators . | . . . . . . Repair Stations . | . . . . . . Recycling Units . | . . . . . . Scanalyzers . | . . . . . . Garrison Access . | . . . . . . Data Cores Recovered . | . . . . . . Used . | . . . . . . Hacking Detections 11 | . 2 2 . 2 5 Full Trace Events 4 | . . . . 1 3 Feedback Events . | . . . . . . Feedback Blocked . | . . . . . . Robot Schematics Acquired . | . . . . . . Robots Built . | . . . . . . Matter . | . . . . . . Time . | . . . . . . Total Robot Build Rating . | . . . . . . Part Schematics Acquired 1 | . . . . . 1 Parts Built . | . . . . . . Matter . | . . . . . . Time . | . . . . . . Total Part Build Rating . | . . . . . . Parts Repaired 1 | . 1 . . . . Time 26 | . 26 . . . . Parts Recycled . | . . . . . . Recycled Matter 8 | . 8 . . . . Retrieved Matter . | . . . . . . Retrieved Components . | . . . . . . Parts Scanalyzed . | . . . . . . Part Schematics Acquired . | . . . . . . Parts Damaged . | . . . . . . Bothacking | -11 -10 -9 -8 -7 -6 ------------ Run | Scr Mat Mat Mat Fac Fac Used RIF Installer . | . . . . . . Robots Hacked . | . . . . . . Non-combat . | . . . . . . Combat . | . . . . . . Robot Hacks Applied . | . . . . . . Relay Couplers Released 5 | . . . . 5 . Machine Destruction 1 | . . . . 1 . Programmers 4 | . . . . 4 . Robots Rewired . | . . . . . . Allies Hacked . | . . . . . . Hacks Repelled . | . . . . . . Allies | -11 -10 -9 -8 -7 -6 -------- Run | Scr Mat Mat Mat Fac Fac Total Allies 3 | . . . . . 3 Largest Group 3 | . . . . . 3 Highest-Rated Group 93 | . . . . . 93 Highest-Rated Ally 31 | . . . . . 31 Total Orders . | . . . . . . Ally Attacks 18 | . . . . . 18 Total Damage 360 | . . . . . 360 Kills 2 | . . . . . 2 Allies Corrupted . | . . . . . . Allies Melted . | . . . . . . Intel | -11 -10 -9 -8 -7 -6 ------- Run | Scr Mat Mat Mat Fac Fac Robot Analysis Total . | . . . . . . Derelict Logs Recovered . | . . . . . . Drone Launches . | . . . . . . Drone Recoveries . | . . . . . . Exploration | -11 -10 -9 -8 -7 -6 ------------- Run | Scr Mat Mat Mat Fac Fac Turns Passed 3921 | 83 892 691 479 761 1015 Spaces Moved 2407 | 61 448 272 395 521 710 Core 123 | 25 . 10 84 . 4 Treads . | . . . . . . Legs 2211 | 36 448 262 238 521 706 Wheels . | . . . . . . Hover . | . . . . . . Flight 73 | . . . 73 . . Fastest Speed 40 | 50 120 50 40 120 50 Average Speed 131 | 109 143 177 92 129 130 Slowest Speed 600 | 150 180 600 120 150 150 Overloaded Moves . | . . . . . . Propulsion Burnouts . | . . . . . . Robots Hopped . | . . . . . . Cave-ins Triggered . | . . . . . . Exploration Rate (%) 25 | 3 40 24 41 18 29 Regions Visited 5 Branch Regions . Pre-discovered Areas . | . . . . . . Known Exits Taken . | . . . . . . Unknown Exits Taken 5 | 1 1 1 1 1 . Scrap Searched . | . . . . . . Spaces Dug . | . . . . . . Terrain Destroyed 25 | . 10 13 . 2 . Melee . | . . . . . . Projectile 2 | . . . . 2 . AOE 23 | . 10 13 . . . Actions | -11 -10 -9 -8 -7 -6 --------- Run | Scr Mat Mat Mat Fac Fac Total 2892 | 75 672 392 447 560 746 Wait 291 | 5 185 72 3 15 11 Move 2398 | 60 447 271 394 520 706 Hop . | . . . . . . Pick Up 30 | 4 12 3 3 4 4 Fast Attach 23 | 4 4 . 6 6 3 Attach 22 | 2 . 8 4 5 3 Detach 4 | . . 3 . . 1 Swap 8 | . 6 . . . 2 Drop 8 | . 6 1 . . 1 Fire 64 | . 12 34 13 4 1 Melee 19 | . . . 19 . . Ram . | . . . . . . Kick 25 | . . . 5 6 14 Crush . | . . . . . . Escape Stasis . | . . . . . . Rewire . | . . . . . . Trap . | . . . . . . Miscellaneous . | . . . . . . Route ------- -11/Scrapyard -10/Materials -9/Materials -8/Materials -7/Factory -6/Factory History --------- Turn | Location | Event 8 | -11/Scrapyard | Discovered new exit (range 16) 84 | -11/Scrapyard | Entered Materials 305 | -10/Materials | Build established: Mutant 727 | -10/Materials | Repaired Assault Rifle 877 | -10/Materials | Discovered new exit (range 16) 976 | -10/Materials | Entered another Materials area 976 | -9/Materials | Evolved 2 slots: Utility x2 1302 | -9/Materials | Build established: Skirmisher 1649 | -9/Materials | Core integrity fell below 50% 1662 | -9/Materials | Core integrity fell below 20% 1666 | -9/Materials | Discovered new exit (range 3) 1667 | -9/Materials | Entered another Materials area 1667 | -8/Materials | Evolved 2 slots: Utility x2 1687 | -8/Materials | Lost 9 parts (2p2n2u3w) 1843 | -8/Materials | Core integrity fell below 50% 1954 | -8/Materials | Build established: Mutant 2001 | -8/Materials | Core integrity fell below 20% 2139 | -8/Materials | Discovered new exit (range 7) 2146 | -8/Materials | Entered Factory 2146 | -7/Factory | Evolved 2 slots: Propulsion x1, Weapon x1 2213 | -7/Factory | Garrison activated, responded to threat 2219 | -7/Factory | Garrison activated, responded to threat 2631 | -7/Factory | Garrison activated, responded to threat 2658 | -7/Factory | Garrison activated, responded to threat 2662 | -7/Factory | Garrison activated, responded to threat 2672 | -7/Factory | Garrison activated, responded to threat 2688 | -7/Factory | Identified exit to Lower Caves 2736 | -7/Factory | Garrison activated, responded to threat 2821 | -7/Factory | Garrison activated, responded to threat 2883 | -7/Factory | Discovered new exit (range 15) 2907 | -7/Factory | Entered another Factory area 2907 | -6/Factory | Evolved 2 slots: Propulsion x2 2925 | -6/Factory | Garrison activated, responded to threat 3148 | -6/Factory | Build established: Scavenger-Mutant 3421 | -6/Factory | Garrison activated, responded to threat 3494 | -6/Factory | Discovered new exit (range 16) 3510 | -6/Factory | Identified exit to Lower Caves 3530 | -6/Factory | Identified exit to Extension 3804 | -6/Factory | Lost 7 parts (1n4u2w) 3838 | -6/Factory | Garrison activated, responded to threat 3865 | -6/Factory | Garrison activated, responded to threat 3877 | -6/Factory | Core integrity fell below 50% 3911 | -6/Factory | Lost 3 parts (1n1u1w) 3914 | -6/Factory | Core integrity fell below 20% 3922 | -6/Factory | Destroyed by Lesser Abomination with Plasma Cannon Last Messages --------------- 03910_ Massive razor-sharp blades shoot up from within the floor. 03910_ Imp. Medium Treads severed. 03910_ Flexi-carbon Leg severed. 03910_ Arm. Leg severed. 03912_ Major Abomination absorbs Arm. Leg. 03913_ Major Abomination absorbs Flexi-carbon Leg, Imp. Medium Treads. 03918_ Slammed into Minor Abomination. 03919_ Lesser Abomination spits out Lgt. Ion Engine. 03919_ Lesser Abomination absorbs Lgt. Ion Engine. 03920_ Fusion Modulator explodes. 03920_ Arm. Leg destroyed. 03920_ Imp. Titanium Leg destroyed. 03920_ Fusion Modulator explodes. 03920_ Terminal disabled. 03920_ Gravity Neutralizing Apparatus destroyed. 03920_ Major Abomination destroyed. 03920_ Lesser Abomination destroyed. 03920_ Fusion Modulator explodes. 03920_ Subcomponent Replicator disabled. 03921_ Lesser Abomination absorbs Imp. Utility Shielding. Map ----- +----------------------------------------------------+ | ?????????????????????????????????????????????????? | | ?????????????????????????????????????????????????? | | ?????????????????????????????????????????????????? | | ?????????????????????????????????????????????????? | | ?????????????????????????????????????????????????? | | ?????????????????????????????????????????????????? | | ???????????????????????#####?????????????????????? | | ?????????????????????## # ???????????????????? | | ???????????????????" """" """#???????????????? | | ???????????????????" " | ! "#??????????????? | | ??????????????????"" " " #?????????????? | | ????????????????? % " #?????????????? | | ?????????????????""" ??????????????? | | ???????????????"""" ##???##????????? | | ????????????????""" %= A ##########????? | | ????????????????? =! # ?????? | | ??????????????????#;; ! # = ??????? | | ??????????????#"#"#"; ;## ???????? | | ??????????????#"#"#"; ; # #"????????? | | ??????????????#"#"#" ;## #?????????? | | ??????????????#"#"#"; ;## #?????????? | | ?????????######"#"#";; A ### ## ??????? | | ?????????# " " " % %### # ?????? | | ?????????# % ="!" " # ?????? | | ?????????# => % > + ????? | | ?????????# @ # ????? | | ?????????# % ##;;;;;######## # ????? | | ?????????###%#" # # #; % ?## ## ?????? | | ?????????????## # # ## #?# #?? ?????? | | ??????????????######## """"""" #?# #?? ?????? | | ????????????????????#; """"""" #?# #??? ????? | | ????????????????????#; """"""" #?# #??? ????? | | ????????????????????## """""""???# #??? ????? | | ?????????????????????# ???????## ##??#+#?### | | ?????????????????????; ""???????# #### ### | | ????????????????????##!% ""???????# ! # | | ?????????????????????# "????????# / | | ?????????????????????#% "????????# T # | | ?????????????????????# ????????# # | | ?????????????????????# ?????????# """ # | | ??????????????###############?????# """ # | | ############## #?????# """ + | | # # """ """ """ !#?????#% # | | # # """ """ """ #????+ # | | # """ " """ """ """ #????#### # | | # """ " #???????######## # | | # """ " #????????????# # # | | # "#######+###################" # # | | # """^""" #????# + [ #?#| ### | | # """ """ #????# # """ """ #?# #?? | +----------------------------------------------------+ Best States ------------- Heat Dissipation 39 Energy Generation 10 Energy Capacity 250 Matter Stores 300 Matter Capacity 300 Sight Range 16 Robot Scan Range 13 Terrain Scan Range 14 Terrain Scan Density 85 Additional Mass Support 12 Armor Coverage 375 Propulsion Shielding 33 Evasion (%) 62 Armor Integrity Analysis 33 Recoil Reduction 2 Item Schematics ----------------- Neutron Cannon | -6/Factory | Hacked Robot Schematics ------------------ None Fabricated ------------ Nothing Alien Tech Used ----------------- None Achievements -------------- None Challenges ------------ None Game ------ Seed NetworkEnergyInjector Manual? 0 Play Time 01:01:44 Cumulative 47.7 hours Start 2019.11.10 @ 22:35:46 End 2019.11.11 @ 00:08:27 Sessions 1 Manual Loads 0 Difficulty Rogue Special Mode Halloween2019/Abominations Game No. 43 Rogue 43 Adventurer 0 Explorer 2 Win Type - Total 0 Types 0/0/0/0/0/0/0 Lore% 30 Gallery% 36 Achievement% 30 Wizard Run 0 Options --------- ASCII 0 Keyboard 1 Movement Vi Keybinds 0 Fullscreen 1 Font 18/CogNarrow Map View 76x50 Tactical HUD 1 Map Filters NONE Filters NONE Steam 1 RUN: a3d843d7-badd-473d-ba57-bfdd69f027bf